[Event "*** Titled Tuesday Blitz"]
[Site "Chess.com"]
[Date "2021.02.16"]
[Round "4"]
[White "Ermito2020"]
[Black "Trickster_Pony"]
[Result "1-0"]
[WhiteElo "2581"]
[BlackElo "1505"]
[TimeControl "180+1"]
[EndTime "10:38:56 PST"]
[Termination "Ermito2020 won by resignation"]

1. e4 {[%clk 0:03:00.9]} 1... c5 {[%clk 0:02:59.8]} 2. Nf3 {[%clk 0:03:00.5]}
2... g6 {[%clk 0:02:55]} 3. c3 {[%clk 0:02:59.7]} 3... Nf6 {[%clk 0:02:47.6]} 4.
e5 {[%clk 0:02:58.2]} 4... Nd5 {[%clk 0:02:47.2]} 5. d4 {[%clk 0:02:59.1]} 5...
cxd4 {[%clk 0:02:40.9]} 6. cxd4 {[%clk 0:02:57.9]} 6... Nc6 {[%clk 0:02:40.5]}
7. Nc3 {[%clk 0:02:57.1]} 7... Nxc3 {[%clk 0:02:34.7]} 8. bxc3 {[%clk 0:02:58]}
8... Bg7 {[%clk 0:02:33.9]} 9. Bd3 {[%clk 0:02:53.7]} 9... O-O {[%clk
0:02:29.3]} 10. O-O {[%clk 0:02:41.3]} 10... d5 {[%clk 0:02:24.2]} 11. h3 {[%clk
0:02:39.2]} 11... f6 {[%clk 0:02:20.8]} 12. exf6 {[%clk 0:02:36.8]} 12... exf6
{[%clk 0:02:15.3]} 13. Re1 {[%clk 0:02:37.2]} 13... f5 {[%clk 0:02:03.8]} 14.
Bf4 {[%clk 0:02:33.7]} 14... h6 {[%clk 0:01:53.7]} 15. Ne5 {[%clk 0:02:28.3]}
15... g5 {[%clk 0:01:44.9]} 16. Nxc6 {[%clk 0:02:25.9]} 16... bxc6 {[%clk
0:01:43.7]} 17. Be5 {[%clk 0:02:25.3]} 17... Bd7 {[%clk 0:01:23.4]} 18. Rb1
{[%clk 0:02:21.4]} 18... Re8 {[%clk 0:01:20.4]} 19. Qh5 {[%clk 0:02:10.7]} 19...
Bxe5 {[%clk 0:01:09.8]} 20. dxe5 {[%clk 0:02:05.1]} 20... Re6 {[%clk 0:01:07.8]}
21. Bxf5 {[%clk 0:02:02.9]} 21... Qf8 {[%clk 0:01:03.3]} 22. Bxe6+ {[%clk
0:01:57]} 22... Bxe6 {[%clk 0:01:04.2]} 23. Qg6+ {[%clk 0:01:55.3]} 1-0

[Event "*** Titled Tuesday Blitz"]
[Site "Chess.com"]
[Date "2021.02.16"]
[Round "4"]
[White "jcibarra"]
[Black "Fusikk"]
[Result "1-0"]
[WhiteElo "2907"]
[BlackElo "2705"]
[TimeControl "180+1"]
[EndTime "10:39:21 PST"]
[Termination "jcibarra won by resignation"]

1. e4 {[%clk 0:03:00.9]} 1... c6 {[%clk 0:02:58.6]} 2. Nf3 {[%clk 0:02:58.1]}
2... d5 {[%clk 0:02:58.7]} 3. d3 {[%clk 0:02:58.7]} 3... dxe4 {[%clk 0:02:55.9]}
4. dxe4 {[%clk 0:02:58.7]} 4... Qxd1+ {[%clk 0:02:56.8]} 5. Kxd1 {[%clk
0:02:59.4]} 5... f6 {[%clk 0:02:57.6]} 6. a4 {[%clk 0:02:53.8]} 6... a5 {[%clk
0:02:56.5]} 7. Nbd2 {[%clk 0:02:45.2]} 7... e5 {[%clk 0:02:54.2]} 8. Nc4 {[%clk
0:02:42.1]} 8... Be6 {[%clk 0:02:42.9]} 9. Nb6 {[%clk 0:02:25.9]} 9... Ra7
{[%clk 0:02:38.1]} 10. Be3 {[%clk 0:02:25.6]} 10... c5 {[%clk 0:02:29.2]} 11.
Bb5+ {[%clk 0:02:16]} 11... Kd8 {[%clk 0:02:24.7]} 12. Ke2 {[%clk 0:02:13.1]}
12... Kc7 {[%clk 0:02:24]} 13. Nc4 {[%clk 0:02:01.4]} 13... Nc6 {[%clk
0:02:17.1]} 14. c3 {[%clk 0:02:01]} 14... h5 {[%clk 0:01:49.4]} 15. Nh4 {[%clk
0:01:45]} 15... Bf7 {[%clk 0:01:33.3]} 16. Rhd1 {[%clk 0:01:38.9]} 16... g6
{[%clk 0:01:30.6]} 17. Na3 {[%clk 0:01:33.1]} 17... Ra8 {[%clk 0:01:28.9]} 18.
Bc4 {[%clk 0:01:32.8]} 18... Bxc4+ {[%clk 0:01:18.9]} 19. Nxc4 {[%clk
0:01:32.6]} 19... Nge7 {[%clk 0:01:15.1]} 20. Bxc5 {[%clk 0:01:30.2]} 20... g5
{[%clk 0:01:13.1]} 21. Bd6+ {[%clk 0:01:25.6]} 21... Kd8 {[%clk 0:01:07.1]} 22.
Bxe7+ {[%clk 0:01:20.9]} 22... Kxe7 {[%clk 0:01:06.9]} 23. Ng6+ {[%clk 0:01:20]}
1-0

[Event "*** Titled Tuesday Blitz"]
[Site "Chess.com"]
[Date "2021.02.16"]
[Round "4"]
[White "verdest"]
[Black "kayrakamer"]
[Result "0-1"]
[WhiteElo "2506"]
[BlackElo "2701"]
[TimeControl "180+1"]
[EndTime "10:39:21 PST"]
[Termination "kayrakamer won by resignation"]

1. d4 {[%clk 0:03:00.9]} 1... Nf6 {[%clk 0:02:55.9]} 2. c4 {[%clk 0:02:59.3]}
2... g6 {[%clk 0:02:55.7]} 3. g3 {[%clk 0:02:58.5]} 3... Bg7 {[%clk 0:02:56.6]}
4. Bg2 {[%clk 0:02:58]} 4... O-O {[%clk 0:02:57.1]} 5. Nc3 {[%clk 0:02:57.8]}
5... d6 {[%clk 0:02:56.6]} 6. Nf3 {[%clk 0:02:57.9]} 6... c6 {[%clk 0:02:56.9]}
7. O-O {[%clk 0:02:57.5]} 7... Qa5 {[%clk 0:02:57.8]} 8. e4 {[%clk 0:02:55.2]}
8... e5 {[%clk 0:02:57.4]} 9. Qc2 {[%clk 0:02:45.7]} 9... Nbd7 {[%clk
0:02:48.3]} 10. Rd1 {[%clk 0:02:41.4]} 10... exd4 {[%clk 0:02:43.4]} 11. Nxd4
{[%clk 0:02:39.7]} 11... Ne5 {[%clk 0:02:42.5]} 12. b3 {[%clk 0:02:35.5]} 12...
Bg4 {[%clk 0:02:37]} 13. Re1 {[%clk 0:02:28.5]} 13... c5 {[%clk 0:02:33.3]} 14.
Ndb5 {[%clk 0:02:19.3]} 14... a6 {[%clk 0:02:17.7]} 15. Nxd6 {[%clk 0:02:18]}
15... Qb6 {[%clk 0:02:06.7]} 16. Nf5 {[%clk 0:01:49.7]} 16... gxf5 {[%clk
0:02:04.2]} 17. exf5 {[%clk 0:01:50.6]} 17... Nf3+ {[%clk 0:01:58.7]} 18. Bxf3
{[%clk 0:01:50.1]} 18... Bxf3 {[%clk 0:01:59.6]} 19. Bb2 {[%clk 0:01:46.4]}
19... Qc6 {[%clk 0:01:56.3]} 20. Qd2 {[%clk 0:01:19.9]} 20... Rad8 {[%clk
0:01:34.8]} 21. Qg5 {[%clk 0:01:14.4]} 21... h6 {[%clk 0:01:33.8]} 22. Qf4
{[%clk 0:01:06.1]} 22... Rd4 {[%clk 0:01:30.6]} 23. Qe3 {[%clk 0:01:01.1]} 23...
Re8 {[%clk 0:01:27.2]} 0-1

[Event "*** Titled Tuesday Blitz"]
[Site "Chess.com"]
[Date "2021.02.16"]
[Round "4"]
[White "FoggyMorning"]
[Black "Piotrek1979"]
[Result "1-0"]
[WhiteElo "2610"]
[BlackElo "2413"]
[TimeControl "180+1"]
[EndTime "10:39:28 PST"]
[Termination "FoggyMorning won by resignation"]

1. e4 {[%clk 0:03:00.9]} 1... c5 {[%clk 0:02:58.8]} 2. Nf3 {[%clk 0:03:00.3]}
2... Nc6 {[%clk 0:02:59.1]} 3. d4 {[%clk 0:03:01.2]} 3... cxd4 {[%clk
0:02:59.4]} 4. Nxd4 {[%clk 0:03:02.1]} 4... g6 {[%clk 0:02:59.6]} 5. c4 {[%clk
0:03:01.4]} 5... Nf6 {[%clk 0:02:58.2]} 6. Nc3 {[%clk 0:02:40.3]} 6... d6 {[%clk
0:02:56.4]} 7. Be2 {[%clk 0:02:39.9]} 7... Nxd4 {[%clk 0:02:54.2]} 8. Qxd4
{[%clk 0:02:40.8]} 8... Bg7 {[%clk 0:02:54.3]} 9. Be3 {[%clk 0:02:41.3]} 9...
O-O {[%clk 0:02:54.1]} 10. Qd2 {[%clk 0:02:42.2]} 10... Be6 {[%clk 0:02:53.6]}
11. Rc1 {[%clk 0:02:41.6]} 11... Qa5 {[%clk 0:02:53.6]} 12. b3 {[%clk
0:02:41.8]} 12... Rfc8 {[%clk 0:01:17.4]} 13. f3 {[%clk 0:02:40.2]} 13... a6
{[%clk 0:01:16.6]} 14. g4 {[%clk 0:02:37.7]} 14... b5 {[%clk 0:01:14.3]} 15. Nd5
{[%clk 0:02:33.2]} 15... Qxd2+ {[%clk 0:01:11]} 16. Kxd2 {[%clk 0:02:34.1]}
16... bxc4 {[%clk 0:01:10.9]} 17. Nxe7+ {[%clk 0:02:32.3]} 17... Kf8 {[%clk
0:01:09.9]} 18. Nxc8 {[%clk 0:02:33.2]} 18... Rxc8 {[%clk 0:01:02.1]} 19. Bxc4
{[%clk 0:02:30.7]} 19... Ra8 {[%clk 0:00:59.1]} 20. Bxe6 {[%clk 0:02:26.9]}
20... fxe6 {[%clk 0:00:58]} 21. Rc6 {[%clk 0:02:27.8]} 21... d5 {[%clk
0:00:52.5]} 22. e5 {[%clk 0:02:16.2]} 22... Nd7 {[%clk 0:00:51.4]} 23. f4 {[%clk
0:02:16]} 23... g5 {[%clk 0:00:50.4]} 24. Rxe6 {[%clk 0:02:12.5]} 24... gxf4
{[%clk 0:00:48.6]} 25. Bxf4 {[%clk 0:02:12.6]} 25... Nc5 {[%clk 0:00:48.9]} 26.
Rc6 {[%clk 0:02:09.6]} 26... Ne4+ {[%clk 0:00:48.3]} 27. Ke3 {[%clk 0:02:07.6]}
27... Kg8 {[%clk 0:00:47.7]} 28. Rhc1 {[%clk 0:02:05.3]} 1-0

[Event "*** Titled Tuesday Blitz"]
[Site "Chess.com"]
[Date "2021.02.16"]
[Round "4"]
[White "Skat2704"]
[Black "Onischuk_V"]
[Result "0-1"]
[WhiteElo "2543"]
[BlackElo "2854"]
[TimeControl "180+1"]
[EndTime "10:39:33 PST"]
[Termination "Onischuk_V won by resignation"]

1. d4 {[%clk 0:03:00.9]} 1... Nf6 {[%clk 0:02:59.3]} 2. c4 {[%clk 0:03:00.4]}
2... c5 {[%clk 0:02:59.6]} 3. d5 {[%clk 0:02:59]} 3... b5 {[%clk 0:02:59.7]} 4.
cxb5 {[%clk 0:02:58.7]} 4... a6 {[%clk 0:03:00]} 5. bxa6 {[%clk 0:02:58.9]} 5...
g6 {[%clk 0:02:59.9]} 6. Nc3 {[%clk 0:02:58.1]} 6... Bg7 {[%clk 0:02:56.3]} 7.
Nf3 {[%clk 0:02:58.3]} 7... O-O {[%clk 0:02:53.4]} 8. g3 {[%clk 0:02:56.7]} 8...
Qa5 {[%clk 0:02:39]} 9. Bg2 {[%clk 0:02:45.3]} 9... Ne4 {[%clk 0:02:34.4]} 10.
O-O {[%clk 0:02:20.4]} 10... Nxc3 {[%clk 0:02:33.4]} 11. bxc3 {[%clk 0:02:20.7]}
11... d6 {[%clk 0:02:30.6]} 12. Bd2 {[%clk 0:02:08.5]} 12... Bxa6 {[%clk
0:02:26.3]} 13. Qc2 {[%clk 0:01:55.4]} 13... Bc4 {[%clk 0:02:18.6]} 14. Rfe1
{[%clk 0:01:41.8]} 14... Nd7 {[%clk 0:02:14.9]} 15. e4 {[%clk 0:01:38.7]} 15...
Rfb8 {[%clk 0:02:06.3]} 16. Rec1 {[%clk 0:01:21.5]} 16... Qa3 {[%clk 0:01:59.8]}
17. Bg5 {[%clk 0:01:06.4]} 17... Rb2 {[%clk 0:01:56]} 18. Qd1 {[%clk 0:01:06.5]}
18... Bxc3 {[%clk 0:01:45.1]} 19. Rc2 {[%clk 0:00:21.4]} 0-1

[Event "*** Titled Tuesday Blitz"]
[Site "Chess.com"]
[Date "2021.02.16"]
[Round "4"]
[White "ChessSwole"]
[Black "lelya96"]
[Result "1-0"]
[WhiteElo "2540"]
[BlackElo "2230"]
[TimeControl "180+1"]
[EndTime "10:39:33 PST"]
[Termination "ChessSwole won by resignation"]

1. b3 {[%clk 0:03:00.9]} 1... Nf6 {[%clk 0:02:52.3]} 2. Bb2 {[%clk 0:03:00.8]}
2... e6 {[%clk 0:02:51.1]} 3. e3 {[%clk 0:02:57.6]} 3... Be7 {[%clk 0:02:51.1]}
4. f4 {[%clk 0:02:57.3]} 4... d5 {[%clk 0:02:49.6]} 5. Nf3 {[%clk 0:02:57.4]}
5... c5 {[%clk 0:02:48.3]} 6. Bb5+ {[%clk 0:02:54.8]} 6... Bd7 {[%clk
0:02:47.4]} 7. Bd3 {[%clk 0:02:49.3]} 7... Nc6 {[%clk 0:02:43.1]} 8. O-O {[%clk
0:02:48.9]} 8... Qc7 {[%clk 0:02:41.5]} 9. Ne5 {[%clk 0:02:47.4]} 9... Nxe5
{[%clk 0:02:37.5]} 10. fxe5 {[%clk 0:02:46.3]} 10... Ng8 {[%clk 0:02:24.1]} 11.
Qg4 {[%clk 0:02:46]} 11... g6 {[%clk 0:02:16.6]} 12. c4 {[%clk 0:02:34.9]} 12...
Nh6 {[%clk 0:02:13.8]} 13. Qf4 {[%clk 0:02:27.9]} 13... g5 {[%clk 0:02:08.7]}
14. Qf3 {[%clk 0:02:22.8]} 14... O-O-O {[%clk 0:02:06.5]} 15. cxd5 {[%clk
0:02:21.2]} 15... exd5 {[%clk 0:02:05.7]} 16. e6 {[%clk 0:02:22.1]} 16... fxe6
{[%clk 0:02:00.3]} 17. Bxh8 {[%clk 0:02:21]} 17... Rxh8 {[%clk 0:02:01.2]} 18.
Nc3 {[%clk 0:02:14.9]} 18... Bd6 {[%clk 0:01:55.9]} 19. Qh3 {[%clk 0:02:14.4]}
19... Nf5 {[%clk 0:01:34.3]} 20. Nxd5 {[%clk 0:02:12.9]} 20... Qa5 {[%clk
0:01:26.1]} 21. Nf6 {[%clk 0:02:07.7]} 21... Be5 {[%clk 0:01:13.1]} 22. Nxd7
{[%clk 0:02:05.5]} 22... Bxa1 {[%clk 0:01:11.4]} 23. Bxf5 {[%clk 0:02:00.6]}
23... exf5 {[%clk 0:00:58.9]} 24. Qxf5 {[%clk 0:02:01.5]} 24... Qxa2 {[%clk
0:00:43]} 25. Nxc5+ {[%clk 0:01:56.8]} 25... Kb8 {[%clk 0:00:42.1]} 26. Qf7
{[%clk 0:01:48.6]} 1-0

[Event "*** Titled Tuesday Blitz"]
[Site "Chess.com"]
[Date "2021.02.16"]
[Round "4"]
[White "Titus369"]
[Black "Beca95"]
[Result "0-1"]
[WhiteElo "2567"]
[BlackElo "2907"]
[TimeControl "180+1"]
[EndTime "10:39:40 PST"]
[Termination "Beca95 won by resignation"]

1. e4 {[%clk 0:03:00.9]} 1... c5 {[%clk 0:02:59.7]} 2. Nf3 {[%clk 0:02:54]} 2...
a6 {[%clk 0:02:59.9]} 3. c3 {[%clk 0:02:52.6]} 3... e6 {[%clk 0:02:55.8]} 4. d4
{[%clk 0:02:52.4]} 4... d5 {[%clk 0:02:56.4]} 5. Nbd2 {[%clk 0:02:51.6]} 5...
Nf6 {[%clk 0:02:49.9]} 6. exd5 {[%clk 0:02:47]} 6... exd5 {[%clk 0:02:49.3]} 7.
Be2 {[%clk 0:02:43.1]} 7... Be7 {[%clk 0:02:48.7]} 8. O-O {[%clk 0:02:42.1]}
8... O-O {[%clk 0:02:48.8]} 9. dxc5 {[%clk 0:02:42.2]} 9... Bxc5 {[%clk
0:02:48.8]} 10. Nb3 {[%clk 0:02:42.1]} 10... Bb6 {[%clk 0:02:47.9]} 11. Nbd4
{[%clk 0:02:39.9]} 11... h6 {[%clk 0:02:47.4]} 12. Bf4 {[%clk 0:02:36.4]} 12...
Nc6 {[%clk 0:02:46.6]} 13. a4 {[%clk 0:02:30.9]} 13... Re8 {[%clk 0:02:46.1]}
14. Re1 {[%clk 0:02:29.6]} 14... Ne4 {[%clk 0:02:43.5]} 15. Bf1 {[%clk
0:02:26.6]} 15... Bg4 {[%clk 0:02:42.3]} 16. Be3 {[%clk 0:02:16.2]} 16... Bc7
{[%clk 0:02:41.9]} 17. h3 {[%clk 0:02:13.7]} 17... Bh5 {[%clk 0:02:42.1]} 18. g4
{[%clk 0:02:09.5]} 18... Bg6 {[%clk 0:02:42.3]} 19. Bg2 {[%clk 0:02:03.6]} 19...
Qd6 {[%clk 0:02:39.9]} 20. Nxc6 {[%clk 0:01:54.6]} 20... bxc6 {[%clk 0:02:40.8]}
21. a5 {[%clk 0:01:48.6]} 21... Rab8 {[%clk 0:02:36.4]} 22. Ra2 {[%clk
0:01:27.1]} 22... c5 {[%clk 0:02:32.4]} 23. Qe2 {[%clk 0:01:13.9]} 23... f5
{[%clk 0:02:15.7]} 24. gxf5 {[%clk 0:00:44.4]} 24... Bxf5 {[%clk 0:02:16.6]} 25.
Rd1 {[%clk 0:00:42.5]} 25... Rbd8 {[%clk 0:02:08.7]} 26. Ra4 {[%clk 0:00:37.3]}
26... Qd7 {[%clk 0:01:56.8]} 27. b3 {[%clk 0:00:23.2]} 27... Nxc3 {[%clk
0:01:53.6]} 0-1

[Event "*** Titled Tuesday Blitz"]
[Site "Chess.com"]
[Date "2021.02.16"]
[Round "4"]
[White "vladimirdamjanovic"]
[Black "tusplingher"]
[Result "1-0"]
[WhiteElo "2532"]
[BlackElo "2310"]
[TimeControl "180+1"]
[EndTime "10:39:44 PST"]
[Termination "vladimirdamjanovic won by resignation"]

1. Nf3 {[%clk 0:02:56.1]} 1... c5 {[%clk 0:02:58.5]} 2. g3 {[%clk 0:02:56]} 2...
g6 {[%clk 0:02:58.6]} 3. Bg2 {[%clk 0:02:56.5]} 3... Bg7 {[%clk 0:02:58.8]} 4.
O-O {[%clk 0:02:57.2]} 4... Nc6 {[%clk 0:02:58.9]} 5. e4 {[%clk 0:02:53.7]} 5...
d6 {[%clk 0:02:58]} 6. d3 {[%clk 0:02:52.5]} 6... e6 {[%clk 0:02:58.2]} 7. Nc3
{[%clk 0:02:51.6]} 7... Nge7 {[%clk 0:02:58.3]} 8. Re1 {[%clk 0:02:50]} 8... O-O
{[%clk 0:02:58.4]} 9. Be3 {[%clk 0:02:39.2]} 9... b6 {[%clk 0:02:57.4]} 10. d4
{[%clk 0:02:39.2]} 10... cxd4 {[%clk 0:02:57.1]} 11. Nxd4 {[%clk 0:02:39.8]}
11... Bb7 {[%clk 0:02:55.9]} 12. Ndb5 {[%clk 0:02:36.1]} 12... d5 {[%clk
0:02:47.1]} 13. exd5 {[%clk 0:02:34.2]} 13... exd5 {[%clk 0:02:47]} 14. Nxd5
{[%clk 0:02:26.1]} 14... Bxb2 {[%clk 0:02:40.5]} 15. Rb1 {[%clk 0:02:15.6]}
15... Bg7 {[%clk 0:02:39.9]} 16. Bg5 {[%clk 0:02:08.3]} 16... f6 {[%clk
0:02:26.2]} 17. Nxe7+ {[%clk 0:02:03.2]} 17... Nxe7 {[%clk 0:02:26.3]} 18. Bxb7
{[%clk 0:02:01.6]} 18... Rb8 {[%clk 0:02:05.6]} 19. Qxd8 {[%clk 0:01:57.4]}
19... Rfxd8 {[%clk 0:02:03.7]} 20. Rxe7 {[%clk 0:01:55.3]} 20... fxg5 {[%clk
0:02:02.9]} 21. Bf3 {[%clk 0:01:36.8]} 21... a6 {[%clk 0:01:59.7]} 22. Nc7
{[%clk 0:01:27.6]} 22... Rbc8 {[%clk 0:01:52.9]} 23. Bg4 {[%clk 0:01:15.6]}
23... Rb8 {[%clk 0:01:50.2]} 24. Rxg7+ {[%clk 0:01:12.2]} 24... Kxg7 {[%clk
0:01:49.6]} 25. Ne6+ {[%clk 0:01:13.1]} 25... Kf6 {[%clk 0:01:49.9]} 26. Nxd8
{[%clk 0:01:13.9]} 26... Rxd8 {[%clk 0:01:50.1]} 27. Rxb6+ {[%clk 0:01:14.3]}
27... Ke5 {[%clk 0:01:49.7]} 28. Rxa6 {[%clk 0:01:12.1]} 28... h5 {[%clk
0:01:49.1]} 29. Be2 {[%clk 0:01:06.5]} 29... Rd2 {[%clk 0:01:48.2]} 30. Bd3
{[%clk 0:01:03.1]} 30... h4 {[%clk 0:01:45.9]} 31. Kf1 {[%clk 0:01:02.5]} 31...
Rd1+ {[%clk 0:01:43]} 32. Kg2 {[%clk 0:01:00]} 32... g4 {[%clk 0:01:42.7]} 33.
gxh4 {[%clk 0:00:57.8]} 33... Kf4 {[%clk 0:01:42.1]} 34. Ra4+ {[%clk 0:00:48.9]}
1-0

[Event "*** Titled Tuesday Blitz"]
[Site "Chess.com"]
[Date "2021.02.16"]
[Round "4"]
[White "Loy_Konstantin"]
[Black "Nachsueb"]
[Result "1-0"]
[WhiteElo "2379"]
[BlackElo "2175"]
[TimeControl "180+1"]
[EndTime "10:39:44 PST"]
[Termination "Loy_Konstantin won by resignation"]

1. e4 {[%clk 0:02:52.2]} 1... c5 {[%clk 0:02:59.1]} 2. Nf3 {[%clk 0:02:51.1]}
2... e6 {[%clk 0:02:59.4]} 3. d3 {[%clk 0:02:51.1]} 3... Nc6 {[%clk 0:02:58.7]}
4. g3 {[%clk 0:02:50.6]} 4... g6 {[%clk 0:02:59.2]} 5. Bg2 {[%clk 0:02:50.9]}
5... Bg7 {[%clk 0:02:59.9]} 6. O-O {[%clk 0:02:51.4]} 6... Nge7 {[%clk
0:03:00.6]} 7. c3 {[%clk 0:02:51.1]} 7... e5 {[%clk 0:02:55.8]} 8. Be3 {[%clk
0:02:48.9]} 8... d6 {[%clk 0:02:55.3]} 9. h3 {[%clk 0:02:48.7]} 9... O-O {[%clk
0:02:55.3]} 10. d4 {[%clk 0:02:49]} 10... b6 {[%clk 0:02:32.6]} 11. dxc5 {[%clk
0:02:39.6]} 11... dxc5 {[%clk 0:02:31.7]} 12. Qe2 {[%clk 0:02:38.6]} 12... Bb7
{[%clk 0:02:24]} 13. Rd1 {[%clk 0:02:37.9]} 13... Qc8 {[%clk 0:02:24.5]} 14. Na3
{[%clk 0:02:35.3]} 14... Ba6 {[%clk 0:02:23.6]} 15. Nb5 {[%clk 0:02:28.3]} 15...
Rd8 {[%clk 0:02:13.3]} 16. a4 {[%clk 0:02:26.1]} 16... Na5 {[%clk 0:02:11.2]}
17. Rxd8+ {[%clk 0:02:20.3]} 17... Qxd8 {[%clk 0:02:10]} 18. Rd1 {[%clk
0:02:20]} 18... Qc8 {[%clk 0:02:02.3]} 19. Bf1 {[%clk 0:02:11.5]} 19... Qe6
{[%clk 0:01:14.3]} 20. Qc2 {[%clk 0:02:03.8]} 20... Bxb5 {[%clk 0:01:10.7]} 21.
Bxb5 {[%clk 0:02:02.2]} 21... Rc8 {[%clk 0:01:07.4]} 22. Bd7 {[%clk 0:01:52]}
22... Qf6 {[%clk 0:01:05.1]} 23. Bxc8 {[%clk 0:01:48.9]} 23... Nxc8 {[%clk
0:01:01.2]} 24. Bg5 {[%clk 0:01:42]} 24... Qxf3 {[%clk 0:00:53.7]} 25. Rd8+
{[%clk 0:01:40.1]} 25... Bf8 {[%clk 0:00:54.3]} 26. Bh6 {[%clk 0:01:22.6]} 26...
Qd1+ {[%clk 0:00:52.9]} 27. Qxd1 {[%clk 0:01:20.6]} 1-0

[Event "*** Titled Tuesday Blitz"]
[Site "Chess.com"]
[Date "2021.02.16"]
[Round "4"]
[White "Rakesh"]
[Black "agartha01"]
[Result "0-1"]
[WhiteElo "2519"]
[BlackElo "2408"]
[TimeControl "180+1"]
[EndTime "10:40:04 PST"]
[Termination "agartha01 won by resignation"]

1. e4 {[%clk 0:03:00.9]} 1... c5 {[%clk 0:02:59.6]} 2. c3 {[%clk 0:03:00.8]}
2... Nf6 {[%clk 0:02:59.1]} 3. e5 {[%clk 0:03:00.4]} 3... Nd5 {[%clk 0:02:59.5]}
4. d4 {[%clk 0:02:59.6]} 4... cxd4 {[%clk 0:03:00.4]} 5. Nf3 {[%clk 0:02:59.1]}
5... e6 {[%clk 0:03:00.7]} 6. cxd4 {[%clk 0:02:57.7]} 6... b6 {[%clk 0:03:00.2]}
7. a3 {[%clk 0:02:55.8]} 7... Ba6 {[%clk 0:02:59.9]} 8. Bxa6 {[%clk 0:02:56.3]}
8... Nxa6 {[%clk 0:03:00.8]} 9. O-O {[%clk 0:02:57]} 9... Nac7 {[%clk
0:03:00.6]} 10. Nbd2 {[%clk 0:02:57.6]} 10... Be7 {[%clk 0:02:59.7]} 11. Ne4
{[%clk 0:02:58.1]} 11... O-O {[%clk 0:02:56.7]} 12. Qe2 {[%clk 0:02:57]} 12...
f5 {[%clk 0:02:55.4]} 13. exf6 {[%clk 0:02:56.9]} 13... Nxf6 {[%clk 0:02:55.2]}
14. Rd1 {[%clk 0:02:51.2]} 14... Nxe4 {[%clk 0:02:48.9]} 15. Qxe4 {[%clk
0:02:52.1]} 15... Nd5 {[%clk 0:02:49.5]} 16. Be3 {[%clk 0:02:50.6]} 16... Rc8
{[%clk 0:02:45]} 17. Rac1 {[%clk 0:02:50]} 17... Bf6 {[%clk 0:02:41.8]} 18. h3
{[%clk 0:02:49]} 18... Qe8 {[%clk 0:02:38.2]} 19. Ne5 {[%clk 0:02:43.8]} 19...
Bxe5 {[%clk 0:02:33.2]} 20. dxe5 {[%clk 0:02:42.3]} 20... Qg6 {[%clk 0:02:33]}
21. Qxg6 {[%clk 0:02:29.3]} 21... hxg6 {[%clk 0:02:33.9]} 22. Bg5 {[%clk
0:02:29.2]} 22... Kf7 {[%clk 0:02:31.3]} 23. h4 {[%clk 0:02:28.8]} 23... Rc6
{[%clk 0:02:27.7]} 24. Rxc6 {[%clk 0:02:26.8]} 24... dxc6 {[%clk 0:02:28.6]} 25.
g3 {[%clk 0:02:27.2]} 25... c5 {[%clk 0:02:27.5]} 26. Kg2 {[%clk 0:02:25.6]}
26... Rc8 {[%clk 0:02:26.7]} 27. Kf3 {[%clk 0:02:25.8]} 27... c4 {[%clk
0:02:26.8]} 28. Kg4 {[%clk 0:02:23.6]} 28... b5 {[%clk 0:02:22.3]} 29. f3 {[%clk
0:02:16.5]} 29... a5 {[%clk 0:02:20]} 30. h5 {[%clk 0:02:08.7]} 30... gxh5+
{[%clk 0:02:18.3]} 31. Kxh5 {[%clk 0:02:09.6]} 31... Rh8+ {[%clk 0:02:03.4]} 32.
Kg4 {[%clk 0:02:09.3]} 32... Rh2 {[%clk 0:02:02.8]} 33. Bc1 {[%clk 0:01:45.7]}
33... b4 {[%clk 0:01:46.5]} 34. a4 {[%clk 0:01:35]} 34... Rxb2 {[%clk
0:01:37.5]} 35. Rxd5 {[%clk 0:01:12.7]} 35... exd5 {[%clk 0:01:36.9]} 36. Bxb2
{[%clk 0:01:12.8]} 36... c3 {[%clk 0:01:37.3]} 37. Ba1 {[%clk 0:01:12.5]} 37...
d4 {[%clk 0:01:34.5]} 38. Kf4 {[%clk 0:01:12.1]} 38... b3 {[%clk 0:01:30.3]} 0-1

[Event "*** Titled Tuesday Blitz"]
[Site "Chess.com"]
[Date "2021.02.16"]
[Round "4"]
[White "EvgenyRomanov"]
[Black "ClydeHillKid"]
[Result "1-0"]
[WhiteElo "2616"]
[BlackElo "2368"]
[TimeControl "180+1"]
[EndTime "10:40:08 PST"]
[Termination "EvgenyRomanov won by resignation"]

1. d4 {[%clk 0:02:57.7]} 1... d5 {[%clk 0:02:59.9]} 2. Nf3 {[%clk 0:02:56.9]}
2... Nf6 {[%clk 0:02:59.8]} 3. Bf4 {[%clk 0:02:57.3]} 3... Bf5 {[%clk
0:02:59.3]} 4. e3 {[%clk 0:02:56.2]} 4... e6 {[%clk 0:02:59.4]} 5. c4 {[%clk
0:02:56.1]} 5... Nbd7 {[%clk 0:02:57]} 6. Nc3 {[%clk 0:02:55.1]} 6... h6 {[%clk
0:02:45.2]} 7. Qb3 {[%clk 0:02:53.1]} 7... dxc4 {[%clk 0:02:44.5]} 8. Bxc4
{[%clk 0:02:48.3]} 8... Nb6 {[%clk 0:02:44.5]} 9. Be2 {[%clk 0:02:44.3]} 9...
Bd6 {[%clk 0:02:44.4]} 10. Ne5 {[%clk 0:02:38.6]} 10... O-O {[%clk 0:02:43.2]}
11. O-O {[%clk 0:02:37.2]} 11... a6 {[%clk 0:02:35.9]} 12. Bg3 {[%clk
0:02:27.4]} 12... Ne4 {[%clk 0:02:35]} 13. Nxe4 {[%clk 0:02:23]} 13... Bxe4
{[%clk 0:02:35.9]} 14. Rac1 {[%clk 0:02:18]} 14... Qe7 {[%clk 0:02:19.8]} 15. a3
{[%clk 0:02:16]} 15... Rac8 {[%clk 0:02:03.5]} 16. f3 {[%clk 0:02:07.3]} 16...
Bd5 {[%clk 0:02:02.3]} 17. Qd1 {[%clk 0:02:03.2]} 17... f6 {[%clk 0:02:00.1]}
18. Ng6 {[%clk 0:02:00.3]} 18... Qf7 {[%clk 0:01:49.9]} 19. Bxd6 {[%clk
0:01:56]} 19... cxd6 {[%clk 0:01:44.8]} 20. Nxf8 {[%clk 0:01:55.4]} 20... Qxf8
{[%clk 0:01:39.4]} 21. e4 {[%clk 0:01:52.5]} 21... Bc6 {[%clk 0:01:39]} 22. Qb3
{[%clk 0:01:51]} 22... Na4 {[%clk 0:01:26.2]} 23. Rxc6 {[%clk 0:01:38.2]} 23...
Rxc6 {[%clk 0:01:25.1]} 24. Qxa4 {[%clk 0:01:38]} 24... Qc8 {[%clk 0:01:24.8]}
25. Qb3 {[%clk 0:01:31.9]} 25... Kf8 {[%clk 0:01:13.9]} 26. h3 {[%clk
0:01:25.6]} 26... e5 {[%clk 0:01:10.8]} 27. dxe5 {[%clk 0:01:23.1]} 27... fxe5
{[%clk 0:01:00.9]} 28. f4 {[%clk 0:01:21.1]} 28... Rc2 {[%clk 0:00:44.1]} 29.
fxe5+ {[%clk 0:01:17.7]} 29... Ke8 {[%clk 0:00:44.8]} 30. Qg8+ {[%clk
0:01:10.9]} 30... Kd7 {[%clk 0:00:44]} 1-0